[Event "*** Titled Tuesday Blitz"]
[Site "Chess.com"]
[Date "2018.05.01"]
[Round "10"]
[White "Kimster98"]
[Black "JSPrepz"]
[Result "1-0"]
[WhiteElo "2551"]
[BlackElo "2629"]
[TimeControl "180+2"]
[EndTime "15:18:12 PDT"]
[Termination "Kimster98 won by resignation"]

1. e4 {[%clk 0:03:01.9]} 1... e5 {[%clk 0:02:59.8]} 2. Nf3 {[%clk 0:03:03.1]}
2... Nc6 {[%clk 0:03:01.1]} 3. Bc4 {[%clk 0:03:01.5]} 3... Nf6 {[%clk
0:03:01.9]} 4. d3 {[%clk 0:03:01.9]} 4... Be7 {[%clk 0:03:02.5]} 5. O-O {[%clk
0:03:02.5]} 5... O-O {[%clk 0:03:03]} 6. Nc3 {[%clk 0:03:00.2]} 6... d6 {[%clk
0:03:04.1]} 7. a3 {[%clk 0:03:01.1]} 7... Kh8 {[%clk 0:03:04.9]} 8. Nd5 {[%clk
0:02:56.2]} 8... Nxd5 {[%clk 0:02:50.2]} 9. Bxd5 {[%clk 0:02:58.1]} 9... f5
{[%clk 0:02:51.1]} 10. exf5 {[%clk 0:02:13.1]} 10... Bxf5 {[%clk 0:02:53]} 11.
d4 {[%clk 0:02:14.2]} 11... Bg4 {[%clk 0:02:30.9]} 12. h3 {[%clk 0:02:14.5]}
12... Bxf3 {[%clk 0:01:49]} 13. Bxf3 {[%clk 0:02:16.4]} 13... Nxd4 {[%clk
0:01:50.1]} 14. Bxb7 {[%clk 0:02:15.3]} 14... Rb8 {[%clk 0:01:51.4]} 15. Ba6
{[%clk 0:01:59.7]} 15... Bg5 {[%clk 0:01:46.5]} 16. b4 {[%clk 0:01:25.6]} 16...
Bxc1 {[%clk 0:01:43.1]} 17. Rxc1 {[%clk 0:01:26.5]} 17... Qg5 {[%clk 0:01:39.5]}
18. Qg4 {[%clk 0:00:50.4]} 18... Qh6 {[%clk 0:01:29]} 19. c3 {[%clk 0:00:45.3]}
19... Ne6 {[%clk 0:01:25.4]} 20. Bc4 {[%clk 0:00:21.1]} 20... Nf4 {[%clk
0:01:25.9]} 21. Kh2 {[%clk 0:00:21.8]} 21... Rf6 {[%clk 0:01:24.8]} 22. g3
{[%clk 0:00:22.1]} 22... Ng6 {[%clk 0:00:58.8]} 23. Bd3 {[%clk 0:00:20.2]} 23...
Rbf8 {[%clk 0:00:59.3]} 24. Kg2 {[%clk 0:00:20.1]} 24... d5 {[%clk 0:00:56.5]}
25. Bxg6 {[%clk 0:00:17.3]} 25... Rxg6 {[%clk 0:00:57.2]} 26. Qe2 {[%clk
0:00:18.9]} 26... e4 {[%clk 0:00:57.2]} 27. Rcd1 {[%clk 0:00:20.4]} 27... c6
{[%clk 0:00:48.2]} 28. c4 {[%clk 0:00:21.4]} 28... Qg5 {[%clk 0:00:47.2]} 29.
cxd5 {[%clk 0:00:21.6]} 29... cxd5 {[%clk 0:00:49.1]} 30. Qe3 {[%clk 0:00:17.6]}
30... Qf5 {[%clk 0:00:45.9]} 31. Rd4 {[%clk 0:00:14.6]} 31... h6 {[%clk
0:00:46.3]} 32. Rfd1 {[%clk 0:00:14.9]} 32... Rd6 {[%clk 0:00:42.9]} 33. Rxe4
{[%clk 0:00:14.8]} 33... Rc6 {[%clk 0:00:29.3]} 34. Rf4 {[%clk 0:00:14]} 34...
Qc8 {[%clk 0:00:30.1]} 35. Rxf8+ {[%clk 0:00:14.7]} 35... Qxf8 {[%clk 0:00:32]}
36. Rxd5 {[%clk 0:00:15.1]} 36... Rc2 {[%clk 0:00:32.9]} 37. Rd2 {[%clk
0:00:11.5]} 37... Qa8+ {[%clk 0:00:32.7]} 38. f3 {[%clk 0:00:12]} 38... Rc1
{[%clk 0:00:34.1]} 39. Re2 {[%clk 0:00:12.3]} 39... Rc8 {[%clk 0:00:33.9]} 40.
Qe4 {[%clk 0:00:13.5]} 40... Qb8 {[%clk 0:00:34.4]} 41. Qg6 {[%clk 0:00:14.6]}
41... Rf8 {[%clk 0:00:34.2]} 42. Re7 {[%clk 0:00:15.2]} 42... Rg8 {[%clk
0:00:34.6]} 43. Qe4 {[%clk 0:00:14.3]} 43... Qd8 {[%clk 0:00:33.6]} 44. Qe2
{[%clk 0:00:13.4]} 44... Qd4 {[%clk 0:00:33.4]} 45. h4 {[%clk 0:00:14.5]} 45...
Qd8 {[%clk 0:00:24.9]} 46. Qe3 {[%clk 0:00:11.8]} 46... Rf8 {[%clk 0:00:25.7]}
47. Qxa7 {[%clk 0:00:11.7]} 47... Qd5 {[%clk 0:00:22.2]} 48. Qe3 {[%clk
0:00:11.5]} 48... Qa2+ {[%clk 0:00:23.1]} 49. Kh3 {[%clk 0:00:12.4]} 49... Qa1
{[%clk 0:00:23.3]} 50. Kg2 {[%clk 0:00:13.1]} 50... Qb2+ {[%clk 0:00:21.9]} 51.
Qe2 {[%clk 0:00:13.2]} 51... Qxa3 {[%clk 0:00:22]} 52. Re4 {[%clk 0:00:13.6]}
52... Qa4 {[%clk 0:00:20.6]} 53. b5 {[%clk 0:00:13.1]} 53... Qa5 {[%clk
0:00:20.9]} 54. Re8 {[%clk 0:00:13.6]} 54... Rxe8 {[%clk 0:00:21.9]} 55. Qxe8+
{[%clk 0:00:15.5]} 55... Kh7 {[%clk 0:00:23.8]} 56. Qe4+ {[%clk 0:00:16.8]}
56... Kh8 {[%clk 0:00:25.2]} 57. Qe8+ {[%clk 0:00:18.4]} 57... Kh7 {[%clk
0:00:26.2]} 58. Qe4+ {[%clk 0:00:20.1]} 58... Kh8 {[%clk 0:00:26.4]} 59. Qe2
{[%clk 0:00:21.6]} 59... Qb4 {[%clk 0:00:26.6]} 60. Kh2 {[%clk 0:00:22.9]} 60...
Qa5 {[%clk 0:00:26.8]} 61. Qb2 {[%clk 0:00:22.8]} 61... Qb6 {[%clk 0:00:27.1]}
62. Kg2 {[%clk 0:00:23.5]} 62... Kg8 {[%clk 0:00:27.5]} 63. Qb3+ {[%clk
0:00:24.2]} 63... Kh8 {[%clk 0:00:28.9]} 64. Kf1 {[%clk 0:00:24.5]} 64... Kh7
{[%clk 0:00:25.9]} 65. h5 {[%clk 0:00:25.3]} 65... Kh8 {[%clk 0:00:27.1]} 66. g4
{[%clk 0:00:26.6]} 66... Kh7 {[%clk 0:00:28.5]} 67. Kg2 {[%clk 0:00:28]} 67...
Kh8 {[%clk 0:00:29.4]} 68. Qb1 {[%clk 0:00:29.3]} 68... Kg8 {[%clk 0:00:29.2]}
69. Qf5 {[%clk 0:00:26.7]} 69... Kh8 {[%clk 0:00:28.1]} 70. Qf8+ {[%clk
0:00:27]} 70... Kh7 {[%clk 0:00:29.3]} 71. Qf5+ {[%clk 0:00:28.5]} 71... Kh8
{[%clk 0:00:30.8]} 72. Qc8+ {[%clk 0:00:29]} 72... Kh7 {[%clk 0:00:30.7]} 73.
Qc2+ {[%clk 0:00:30.1]} 73... Kh8 {[%clk 0:00:31]} 74. Qc8+ {[%clk 0:00:21.5]}
74... Kh7 {[%clk 0:00:30.6]} 75. Qc6 {[%clk 0:00:23]} 75... Qa5 {[%clk
0:00:25.6]} 76. Qg6+ {[%clk 0:00:13.6]} 76... Kh8 {[%clk 0:00:26.4]} 77. Qe8+
{[%clk 0:00:15.5]} 77... Kh7 {[%clk 0:00:27.7]} 78. Qg6+ {[%clk 0:00:17.4]}
78... Kh8 {[%clk 0:00:29.2]} 79. b6 {[%clk 0:00:17.7]} 79... Qd2+ {[%clk
0:00:28.2]} 80. Kg3 {[%clk 0:00:16.9]} 80... Qe1+ {[%clk 0:00:28.3]} 81. Kf4
{[%clk 0:00:18.4]} 81... Qd2+ {[%clk 0:00:29.6]} 82. Kg3 {[%clk 0:00:19.8]}
82... Qe1+ {[%clk 0:00:30.7]} 83. Kf4 {[%clk 0:00:21.4]} 83... Qd2+ {[%clk
0:00:32]} 84. Ke4 {[%clk 0:00:21]} 84... Qc2+ {[%clk 0:00:29.1]} 85. Kd4 {[%clk
0:00:21.5]} 85... Qd2+ {[%clk 0:00:28.7]} 86. Kc5 {[%clk 0:00:22.2]} 86... Qc3+
{[%clk 0:00:24.9]} 87. Kb5 {[%clk 0:00:22.9]} 87... Qb3+ {[%clk 0:00:24.8]} 88.
Kc6 {[%clk 0:00:23.1]} 88... Qxf3+ {[%clk 0:00:20.9]} 89. Kc7 {[%clk 0:00:24.5]}
89... Qc3+ {[%clk 0:00:20.6]} 90. Kb7 {[%clk 0:00:23.6]} 90... Qf3+ {[%clk
0:00:21]} 91. Kb8 {[%clk 0:00:24.5]} 91... Qf8+ {[%clk 0:00:21.2]} 92. Kc7
{[%clk 0:00:25.2]} 92... Qe7+ {[%clk 0:00:22.3]} 93. Kc6 {[%clk 0:00:26.4]}
93... Qe1 {[%clk 0:00:19.5]} 94. b7 {[%clk 0:00:26.3]} 94... Qc3+ {[%clk
0:00:20.7]} 95. Kd7 {[%clk 0:00:27.1]} 95... Qd4+ {[%clk 0:00:12]} 96. Kc7
{[%clk 0:00:27.9]} 96... Qc5+ {[%clk 0:00:12.2]} 97. Kd7 {[%clk 0:00:25.3]}
97... Qd5+ {[%clk 0:00:10.3]} 98. Kc7 {[%clk 0:00:26.8]} 98... Qc5+ {[%clk
0:00:09.9]} 99. Qc6 {[%clk 0:00:28.3]} 99... Qe7+ {[%clk 0:00:08.2]} 100. Kb6
{[%clk 0:00:26.8]} 100... Qb4+ {[%clk 0:00:08.3]} 101. Qb5 {[%clk 0:00:27]}
101... Qd6+ {[%clk 0:00:09.1]} 102. Ka7 {[%clk 0:00:26.7]} 102... Qa3+ {[%clk
0:00:03.7]} 103. Qa6 {[%clk 0:00:21.5]} 103... Qc5+ {[%clk 0:00:04.8]} 104. Ka8
{[%clk 0:00:21.9]} 104... Qd5 {[%clk 0:00:06.3]} 105. Qa4 {[%clk 0:00:19.4]}
105... Kh7 {[%clk 0:00:04.5]} 106. Qa3 {[%clk 0:00:19.3]} 106... Kh8 {[%clk
0:00:03.9]} 107. Qf8+ {[%clk 0:00:20]} 107... Kh7 {[%clk 0:00:05.2]} 108. Qf5+
{[%clk 0:00:21.6]} 108... Kh8 {[%clk 0:00:03.7]} 109. Qxd5 {[%clk 0:00:21.5]}
1-0